bitfinex-derivatives/quotes_SOLF0:USTF0_20250527
["timestamp","ask_amount","ask_price","bid_price","bid_amount"]
[1748357881841,5.6604,176.6,176.57,38.6613]
[1748357882248,5.6604,176.6,176.58,5.661]
[1748357882551,5.6604,176.6,176.57,33.0]
[1748357882741,5.6604,176.6,176.53,33.02]
[1748357882947,0.03931759,176.58,176.53,33.02]
[1748357883538,5.70041759,176.58,176.53,33.02]
[1748357884046,5.70041759,176.58,176.55,5.6618]
[1748357884245,5.6616,176.57,176.53,33.02]
[1748357884443,0.03931759,176.58,176.49,33.02]
[1748357884648,5.6624,176.54,176.51,5.6632]
[1748357885245,5.6627,176.53,176.5,5.6636]
[1748357885641,5.6624,176.54,176.5,5.6636]
[1748357885846,0.03713864,176.55,176.48,2.0029]
[1748357886745,5.69933864,176.55,176.51,5.663]
[1748357886947,5.69933864,176.55,176.48,2.0029]
[1748357887147,0.03713864,176.55,176.47,521.9]
[1748357887342,10.05350429,176.54,176.48,5.6641]
[1748357887546,12.08470429,176.54,176.47,33.02]
[1748357887752,2.0312,176.54,176.47,33.02]
[1748357888948,2.0312,176.54,176.43,33.02]
[1748357889151,0.04252009,176.5,176.43,33.02]
[1748357889456,5.6646,176.47,176.43,38.6858]
[1748357889748,10.05350429,176.49,176.43,5.6658]
[1748357889962,5.6652,176.45,176.41,5.6665]
[1748357890155,0.04331553,176.45,176.37,33.02]
[1748357890851,5.6659,176.43,176.39,5.667]
[1748357891050,0.04331553,176.45,176.37,33.02]
[1748357892059,0.04331553,176.45,176.44,5.6655]
[1748357892252,33.04,176.52,176.42,33.04]
[1748357892551,33.04,176.52,176.48,5.6642]
[1748357893052,33.04,176.52,176.43,34.9252]
[1748357893261,0.03721283,176.49,176.46,0.0404827]
[1748357893755,0.03721283,176.49,176.48,5.6642]
[1748357894358,1.283e-05,176.49,176.48,5.6642]
[1748357894854,5.6613,176.58,176.48,33.04]
[1748357895247,5.6614,176.57,176.48,33.04]
[1748357895449,33.04,176.59,176.48,33.04]
[1748357895655,0.04058881,176.55,176.52,0.04237812]
[1748357896051,0.04058881,176.55,176.54,5.6623]
[1748357896262,8.881e-05,176.55,176.54,5.6623]
[1748357897752,8.881e-05,176.55,176.54,7.6575]
[1748357902757,8.881e-05,176.55,176.54,9.7162]
[1748357904355,8.881e-05,176.55,176.54,7.6575]
[1748357904556,8.881e-05,176.55,176.53,38.7026]
[1748357904755,8.881e-05,176.55,176.53,33.04]
[1748357905457,8.881e-05,176.55,176.54,5.6623]
[1748357905659,32.92,176.64,176.54,3.9956]
[1748357905857,2.0469,176.66,176.54,3.9956]
[1748357906558,5.6592,176.64,176.6,5.6602]
[1748357906758,5.69892746,176.64,176.6,5.69767256]
[1748357907155,5.6595,176.63,176.6,0.03747256]
[1748357908163,0.03972746,176.64,176.6,0.03747256]
[1748357908957,5.6597,176.63,176.6,0.03747256]
[1748357909362,5.6597,176.63,176.6,5.69777256]
[1748357910363,5.6597,176.63,176.6,0.03747256]
[1748357913266,5.6597,176.63,176.6,5.69787256]
[1748357913665,5.6597,176.63,176.6,0.03747256]
[1748357913867,5.69892746,176.64,176.6,0.03747256]
[1748357914167,0.03972746,176.64,176.62,5.6597]
[1748357914569,0.03972746,176.64,176.6,0.03747256]
[1748357914867,0.03972746,176.64,176.61,5.66]
[1748357915063,0.03972746,176.64,176.6,0.03747256]
[1748357915467,0.03972746,176.64,176.6,5.69777256]
[1748357915668,0.03972746,176.64,176.6,0.03747256]
[1748357917073,0.03972746,176.64,176.61,5.66]
[1748357917573,0.03972746,176.64,176.62,5.6597]
[1748357918273,5.69912746,176.64,176.6,0.03747256]
[1748357918776,5.69912746,176.64,176.61,5.66]
[1748357919174,0.03972746,176.64,176.6,0.03747256]
[1748357919375,0.03972746,176.64,176.62,5.6595]
[1748357920275,0.03972746,176.64,176.6,0.03747256]
[1748357921380,0.03972746,176.64,176.61,5.6599]
[1748357921587,0.03972746,176.64,176.6,0.03747256]
[1748357921979,5.69882746,176.64,176.61,5.6598]
[1748357922180,0.03972746,176.64,176.61,5.6598]
[1748357922388,0.03972746,176.64,176.6,0.03747256]
[1748357922684,0.03972746,176.64,176.61,5.66]
[1748357922883,0.03972746,176.64,176.6,0.03747256]
[1748357923288,0.03972746,176.64,176.61,5.6599]
[1748357923478,5.69882746,176.64,176.61,5.6599]
[1748357923787,0.03972746,176.64,176.62,5.6596]
[1748357923978,0.03972746,176.64,176.6,0.03747256]
[1748357924179,0.03972746,176.64,176.6,10.0951523]
[1748357924382,0.03972746,176.64,176.63,5.6594]
[1748357924684,0.03972746,176.64,176.63,38.5594]
[1748357925778,5.6573,176.7,176.65,5.6585]
[1748357926374,32.9,176.73,176.65,5.6585]
[1748357926375,5.6575,176.69,176.65,5.6585]
[1748357926784,32.9,176.73,176.65,5.6585]
[1748357926976,0.03916618,176.69,176.65,0.04238895]
[1748357927387,5.69676618,176.69,176.65,5.70108895]
[1748357927989,5.6578,176.68,176.65,5.70108895]
[1748357928290,0.03916618,176.69,176.65,0.04238895]
[1748357928496,5.69686618,176.69,176.65,0.04238895]
[1748357928791,5.69686618,176.69,176.65,5.70108895]
[1748357929091,5.69676618,176.69,176.66,5.6584]
[1748357929891,0.03916618,176.69,176.65,0.04238895]
[1748357931588,0.03916618,176.69,176.68,5.6578]
[1748357933694,0.03916618,176.69,176.67,5.6581]
[1748357934089,0.03916618,176.69,176.66,5.6584]
[1748357934884,5.69676618,176.69,176.66,5.6584]
[1748357935093,0.03916618,176.69,176.65,0.04238895]
[1748357935489,5.658,176.68,176.65,0.04238895]
[1748357936188,5.69676618,176.69,176.65,5.70098895]
[1748357936499,0.03916618,176.69,176.65,0.04238895]
[1748357936797,0.03916618,176.69,176.68,5.6578]
[1748357936992,0.03916618,176.69,176.68,38.4578]
[1748357938391,0.03916618,176.69,176.68,32.8]
[1748357938997,0.03916618,176.69,176.68,38.4578]
[1748357939300,6.88965567,176.84,176.68,38.4578]
[1748357939301,2.0564,176.79,176.68,32.8]
[1748357939495,2.0564,176.79,176.69,10.05767974]
[1748357939691,2.0564,176.79,176.75,5.6556]
[1748357939997,3.8223,176.82,176.73,32.78]
[1748357940299,0.04183713,176.79,176.76,0.04219465]
[1748357940700,0.04183713,176.79,176.76,5.69729465]
[1748357941198,5.69623713,176.79,176.76,5.69729465]
[1748357941792,0.04183713,176.79,176.76,5.69729465]
[1748357942798,0.04183713,176.79,176.76,0.04219465]
[1748357943400,0.04183713,176.79,176.78,5.6546]
[1748357943594,0.04183713,176.79,176.78,38.4346]
[1748357944302,1.8695,176.89,176.78,42.83767974]
[1748357944505,1.8695,176.89,176.81,10.05767974]
[1748357945303,0.04144049,176.87,176.83,0.04112099]
[1748357945505,0.04144049,176.87,176.83,32.82112099]
[1748357945903,0.04144049,176.87,176.84,5.6525]
[1748357947600,0.04144049,176.87,176.83,32.82112099]
[1748357947910,5.69324049,176.87,176.83,32.82112099]
[1748357948204,0.04144049,176.87,176.83,32.82112099]
[1748357948800,5.6523,176.86,176.83,32.82112099]
[1748357949713,5.69324049,176.87,176.83,38.47412099]
[1748357950006,0.04144049,176.87,176.83,32.82112099]
[1748357950506,0.04144049,176.87,176.84,5.6525]
[1748357950708,0.04144049,176.87,176.83,32.82112099]
[1748357950899,0.04144049,176.87,176.84,5.6526]
[1748357952304,0.04144049,176.87,176.85,5.6523]
[1748357953007,0.04144049,176.87,176.86,5.6521]
[1748357954207,0.04144049,176.87,176.83,32.82112099]
[1748357955109,0.04144049,176.87,176.83,0.04112099]
[1748357955409,0.04144049,176.87,176.86,5.6521]
[1748357957111,10.05767974,177.01,176.86,10.05767974]
[1748357957309,10.05767974,177.01,176.89,10.05767974]
[1748357957310,3.8667,177.01,176.89,10.05767974]
[1748357957616,32.76,177.06,176.92,10.05767974]
[1748357957809,36.6267,177.06,176.92,10.05767974]
[1748357958004,42.2725,177.06,176.97,0.03964033]
[1748357958312,0.03696216,177.01,177.0,5.6476]
[1748357958511,0.04006506,177.02,176.99,0.04284248]
[1748357958812,0.03760082,177.02,176.99,0.03569516]
[1748357959019,11.2846,177.17,176.99,0.03569516]
[1748357959020,42.69767974,177.14,177.0,32.64]
[1748357959312,2.0322,177.12,177.0,32.64]
[1748357959514,2.0322,177.12,177.05,5.646]
[1748357959812,3.9733,177.12,177.0,32.64]
[1748357960012,0.04201027,177.08,177.04,0.0383206]
[1748357960403,5.68731027,177.08,177.04,0.0383206]
[1748357961217,5.6455,177.07,177.04,0.0383206]
[1748357961616,0.04201027,177.08,177.04,0.0383206]
[1748357962006,0.04201027,177.08,177.04,32.6783206]
[1748357962207,0.04201027,177.08,177.07,5.6454]
[1748357962803,0.04201027,177.08,177.06,5.6456]
[1748357963005,0.04201027,177.08,177.05,32.64]
[1748357963214,0.04201027,177.08,177.04,0.0383206]
[1748357963608,1.027e-05,177.08,177.04,0.0383206]
[1748357963808,1.8788,177.16,177.06,16.31350822]
[1748357964004,3.974,177.17,177.07,3.9917]
[1748357964207,3.974,177.17,177.08,32.62]
[1748357964713,3.974,177.17,177.14,5.6429]
[1748357964917,4.01222618,177.17,177.14,5.6429]
[1748357965712,4.01222618,177.17,177.11,0.03762709]
[1748357965713,0.03822618,177.17,177.11,0.03762709]
[1748357965921,0.03822618,177.17,177.13,32.62]
[1748357966117,0.03822618,177.17,177.16,5.6425]
[1748357967015,0.03822618,177.17,177.15,0.03681154]
[1748357968421,0.03822618,177.17,177.09,5.6447]
[1748357968809,0.03822618,177.17,177.07,38.6638]
[1748357969014,0.03822618,177.17,177.1,5.6442]
[1748357969317,0.03822618,177.17,177.12,16.3522417]
[1748357969617,0.03822618,177.17,177.13,149.12]
[1748357969818,0.03822618,177.17,177.16,5.6425]
[1748357970618,0.03822618,177.17,177.13,149.12]
[1748357970821,0.03822618,177.17,177.14,32.6]
[1748357971324,0.03822618,177.17,177.15,5.6428]
[1748357971917,0.03822618,177.17,177.14,38.2431]
[1748357972121,0.03822618,177.17,177.14,32.6]
[1748357972420,0.03822618,177.17,177.12,0.03873348]
[1748357974218,5.6431,177.15,177.12,0.03873348]
[1748357974419,0.03822618,177.17,177.12,0.03873348]
[1748357976513,5.6435,177.13,177.12,0.03873348]
[1748357978122,1.9823,177.14,177.06,32.6]
[1748357978312,1.9823,177.14,177.02,34.619]
[1748357978719,5.6438,177.12,177.02,34.619]
[1748357978919,0.04122679,177.09,177.07,5.6451]
[1748357979316,0.04122679,177.09,177.05,0.04006477]
[1748357979628,0.04122679,177.09,177.08,5.6451]
[1748357980725,2.679e-05,177.09,177.08,5.6451]
[1748357980922,5.6416,177.19,177.07,32.6]
[1748357981124,34.5962,177.2,177.07,32.6]
[1748357981527,5.6419,177.18,177.08,1.9235]
[1748357981921,0.04194198,177.15,177.11,0.04082108]
[1748357982127,0.04194198,177.15,177.12,5.6436]
[1748357982630,0.04194198,177.15,177.11,0.04082108]
[1748357984422,0.04194198,177.15,177.13,5.6432]
[1748357984624,0.04194198,177.15,177.11,0.04082108]
[1748357985727,0.04194198,177.15,177.12,5.6435]
[1748357986821,0.04194198,177.15,177.11,0.04082108]
[1748357987828,0.04194198,177.15,177.12,5.6435]
[1748357989026,0.04194198,177.15,177.13,5.6435]
[1748357989529,0.04194198,177.15,177.11,0.04082108]
[1748357989934,0.04194198,177.15,177.12,32.48]
[1748357990323,0.04194198,177.15,177.14,5.6431]
[1748358000348,4.198e-05,177.15,177.14,5.6431]
[1748358000649,32.48,177.24,177.2,5.641]
[1748358000838,3.7519,177.25,177.17,32.46]
[1748358001040,13.74659985,177.25,177.17,32.46]
[1748358001340,9.99469985,177.22,177.05,11.2917]
[1748358001641,0.03947997,177.17,177.13,0.04289179]
[1748358002336,0.03947997,177.17,177.14,5.6429]
[1748358002544,0.03947997,177.17,177.13,0.04289179]
[1748358003040,4.44762606,177.16,177.13,0.04289179]
[1748358003238,4.44762606,177.15,177.13,0.04289179]
[1748358003837,4.4517812,177.14,177.13,0.04289179]
[1748358004045,4.44762606,177.15,177.13,0.04289179]
[1748358004744,4.44762606,177.15,177.14,5.6431]
[1748358005333,4.44762606,177.15,177.13,0.04289179]
[1748358005539,0.03947997,177.17,177.13,0.04289179]
[1748358005739,4.46153216,177.16,177.13,0.04289179]
[1748358006538,0.03947997,177.17,177.16,5.6425]
[1748358007642,0.03947997,177.17,177.15,5.6427]
[1748358008045,0.03947997,177.17,177.15,5.6426]
[1748358008241,0.03947997,177.17,177.13,0.04289179]
[1748358008649,0.03947997,177.17,177.16,5.6425]
[1748358009147,0.03947997,177.17,177.15,5.6427]
[1748358009843,0.03947997,177.17,177.16,5.6425]
[1748358010550,6.97129661,177.26,177.16,38.1]
[1748358010843,6.0168,177.35,177.19,16.28986361]
[1748358011051,4.47406411,177.34,177.2,116.18]
[1748358011241,4.47406411,177.33,177.21,32.46]
[1748358011443,0.04312231,177.29,177.25,0.04276388]
[1748358012552,0.04312231,177.29,177.27,5.6388]
[1748358013049,0.04312231,177.29,177.28,5.6387]
[1748358013259,2.231e-05,177.29,177.28,5.6387]
[1748358018558,2.231e-05,177.29,177.27,1.9257]
[1748358018559,3.9265,177.41,177.35,5.6362]
[1748358018757,3.9265,177.41,177.34,32.32]
[1748358019155,5.6351,177.4,177.34,37.9567]
[1748358019460,0.03655215,177.39,177.35,0.03782236]
[1748358021049,5.6358,177.37,177.35,0.03782236]
[1748358021258,0.03655215,177.39,177.35,0.03782236]
[1748358021751,5.6361,177.36,177.35,0.03782236]
[1748358023961,0.03655215,177.39,177.35,0.03782236]
[1748358024655,5.67175215,177.39,177.35,5.67402236]
[1748358025162,0.03655215,177.39,177.35,0.03782236]
[1748358025359,0.03655215,177.39,177.35,116.03782236]
[1748358025556,0.03655215,177.39,177.35,117.98582236]
[1748358025761,0.03655215,177.39,177.35,1.98582236]
[1748358026356,0.03655215,177.39,177.36,5.6359]
[1748358027058,5.67175215,177.39,177.35,5.67432236]
[1748358027362,0.03655215,177.39,177.35,0.03782236]
[1748358027563,5.67185215,177.39,177.35,5.67402236]
[1748358028160,0.03655215,177.39,177.35,0.03782236]
[1748358029059,0.03655215,177.39,177.38,5.6355]
[1748358029460,1.9637,177.49,177.35,0.03782236]
[1748358029755,1.9578,177.58,177.42,16.28986361]
[1748358029962,1.9578,177.58,177.43,523.0944]
[1748358030155,5.63,177.56,177.44,115.92]
[1748358030566,0.04118952,177.52,177.5,5.6315]
[1748358030859,0.04136489,177.53,177.5,37.9515]
[1748358031369,0.04136489,177.53,177.51,5.6312]
[1748358031564,0.04136489,177.53,177.5,32.32]
[1748358033360,5.67236489,177.53,177.5,32.32]
[1748358033666,0.04136489,177.53,177.5,32.32]
[1748358033869,5.6311,177.52,177.5,32.32]
[1748358035369,0.04136489,177.53,177.5,32.32]
[1748358035370,5.6314,177.51,177.5,32.32]
[1748358035865,0.04136489,177.53,177.49,0.03559487]
[1748358036664,5.67236489,177.53,177.49,0.03559487]
[1748358037063,5.6317,177.5,177.49,0.03559487]
[1748358037261,2.0415,177.52,177.41,32.3]
[1748358037462,3.977,177.52,177.41,32.3]
[1748358037661,5.6329,177.47,177.42,5.6341]
[1748358038173,0.03829831,177.46,177.43,0.04329264]
[1748358038775,5.6343,177.42,177.38,5.6355]
[1748358039075,1.9906,177.48,177.37,32.3]
[1748358039368,16.28986361,177.45,177.34,486.76]
[1748358039573,32.3,177.44,177.34,486.76]
[1748358039770,5.6745629,177.41,177.37,0.03892482]
[1748358039974,0.0399629,177.41,177.37,0.03892482]
[1748358040277,5.6352,177.39,177.37,0.03892482]
[1748358040473,0.0399629,177.41,177.37,0.03892482]
[1748358040967,16.32982651,177.41,177.29,32.3]
[1748358041171,16.28986361,177.41,177.29,32.3]
[1748358041375,16.28986361,177.41,177.3,5.6378]
[1748358041376,5.6364,177.36,177.3,5.6378]
[1748358041669,5.6364,177.36,177.29,32.3]
[1748358042171,0.04231669,177.34,177.31,0.041401]
[1748358042573,5.6374,177.32,177.31,0.041401]
[1748358042769,0.04231669,177.34,177.25,32.3]
[1748358043066,5.6383,177.3,177.25,32.3]
[1748358043271,32.3,177.33,177.25,32.3]
[1748358043667,32.3,177.33,177.23,1.9653]
[1748358043668,32.3,177.33,177.22,1.9161]
[1748358043872,0.03937609,177.29,177.26,0.04318903]
[1748358044777,0.03937609,177.29,177.26,5.68248903]
[1748358044979,0.03937609,177.29,177.26,0.04318903]
[1748358045272,5.6388,177.28,177.26,0.04318903]
[1748358045576,0.03937609,177.29,177.19,32.3]
[1748358045778,5.6384,177.3,177.25,5.6395]
[1748358046076,1.9844,177.32,177.24,32.3]
[1748358046266,1.9844,177.32,177.19,16.28986361]
[1748358046267,1.9844,177.32,177.25,32.3]
[1748358046467,1.9844,177.32,177.31,5.6377]
[1748358046672,0.03648549,177.33,177.3,0.04188734]
[1748358048678,5.67358549,177.33,177.3,0.04188734]
[1748358049471,0.03648549,177.33,177.3,0.04188734]
[1748358050076,0.03648549,177.33,177.31,5.6375]
[1748358050271,0.03648549,177.33,177.3,0.04188734]
[1748358050674,0.03648549,177.33,177.32,5.6374]
[1748358051166,0.03648549,177.33,177.31,5.6377]
[1748358052776,0.03648549,177.33,177.3,0.04188734]
[1748358055975,5.67378549,177.33,177.3,0.04188734]
[1748358056173,0.03648549,177.33,177.3,0.04188734]
[1748358056576,5.67368549,177.33,177.3,0.04188734]
[1748358056773,0.03648549,177.33,177.3,0.04188734]
[1748358057277,5.6377,177.31,177.3,0.04188734]
[1748358057682,0.03648549,177.33,177.3,0.04188734]
[1748358057878,5.6375,177.32,177.3,0.04188734]
[1748358058576,0.03648549,177.33,177.3,0.04188734]
[1748358059778,16.3263491,177.33,177.21,1.932]
[1748358059978,3.7133,177.32,177.21,1.932]
[1748358060179,3.7133,177.32,177.25,5.6396]
[1748358060180,32.2,177.31,177.25,5.6396]
[1748358060376,32.2,177.31,177.21,1.932]
[1748358060579,5.6387,177.28,177.24,5.6397]
[1748358060783,0.03928464,177.28,177.24,0.0399788]
[1748358061079,0.03928464,177.28,177.27,5.639]
[1748358065090,8.464e-05,177.28,177.27,5.639]
[1748358068385,8.464e-05,177.28,177.26,5.6392]
[1748358068591,8.464e-05,177.28,177.25,32.2]
[1748358068891,8.464e-05,177.28,177.27,5.639]
[1748358069886,8.464e-05,177.28,177.27,11.279]
[1748358070894,32.2,177.4,177.37,5.6357]
[1748358071288,32.2,177.4,177.38,5.6355]
[1748358071685,0.03960526,177.41,177.37,0.04268492]
[1748358071886,0.04194732,177.41,177.37,0.0372878]
[1748358072088,0.04194732,177.41,177.37,3.7548878]
[1748358072593,0.04194732,177.41,177.37,0.0372878]
[1748358073494,5.6355,177.38,177.37,0.0372878]
[1748358077493,5.6373,177.33,177.3,34.2358]
[1748358077699,5.6373,177.33,177.3,32.2]
[1748358077897,48.48986361,177.39,177.24,2.0235]
[1748358078091,16.28986361,177.35,177.24,2.0235]
[1748358078295,34.0384,177.34,177.24,2.0235]
[1748358078499,0.0431689,177.31,177.27,0.04265839]
[1748358078691,5.6387,177.28,177.27,0.04265839]
[1748358079095,32.08,177.29,177.22,32.18]
[1748358079295,32.08,177.29,177.2,5.641]
[1748358079694,32.08,177.29,177.18,32.08]
[1748358080097,0.03775938,177.25,177.22,0.03942176]
[1748358080902,0.03775938,177.25,177.22,5.67992176]
[1748358081102,0.03775938,177.25,177.22,0.03942176]
[1748358081703,0.03775938,177.25,177.24,5.64]
[1748358082094,0.03775938,177.25,177.22,0.03942176]
[1748358082095,32.08,177.33,177.23,32.08]
[1748358082299,32.08,177.33,177.24,4.0302]
[1748358082599,37.7171,177.33,177.29,5.6382]
[1748358082897,37.7171,177.33,177.24,4.0302]
[1748358082898,32.08,177.33,177.24,4.0302]
[1748358083098,0.04105248,177.3,177.29,5.6381]
[1748358084297,0.04105248,177.3,177.27,0.04171343]
[1748358084505,0.04105248,177.3,177.28,5.6386]
[1748358084695,0.04105248,177.3,177.27,0.04171343]
[1748358085602,0.04105248,177.3,177.27,5.68071343]
[1748358085811,0.04105248,177.3,177.27,0.04171343]
[1748358086204,5.6387,177.28,177.27,0.04171343]
[1748358087305,37.7187,177.28,177.27,0.04171343]
[1748358088710,32.08,177.28,177.27,0.04171343]
[1748358089197,0.04105248,177.3,177.27,0.04171343]
[1748358089808,5.6384,177.29,177.27,0.04171343]
[1748358090807,0.04105248,177.3,177.27,0.04171343]
[1748358091206,5.6387,177.28,177.27,0.04171343]
[1748358091405,0.04105248,177.3,177.2,32.08]
[1748358091605,20.19006361,177.29,177.16,32.08]
[1748358091802,20.19006361,177.29,177.17,5.6419]
[1748358092512,0.03679571,177.25,177.21,0.03565956]
[1748358092810,32.13679571,177.25,177.21,0.03565956]
[1748358093518,32.13679571,177.25,177.22,5.6405]
[1748358093712,32.13679571,177.25,177.21,0.03565956]
[1748358093713,0.03679571,177.25,177.21,0.03565956]
[1748358094113,0.03679571,177.25,177.24,5.64]
[1748358094622,0.03679571,177.25,177.21,0.03565956]
[1748358095213,0.03679571,177.25,177.24,5.64]
[1748358096715,0.03679571,177.25,177.21,32.13565956]
[1748358098421,0.03679571,177.25,177.24,5.64]
[1748358099714,9.571e-05,177.25,177.24,5.64]
[1748358100018,1.9431,177.35,177.24,5.64]
[1748358100019,32.1,177.35,177.24,5.64]
[1748358100216,32.1,177.35,177.25,2.0411]
[1748358100810,0.04130938,177.32,177.28,0.03817728]
[1748358102125,0.04130938,177.32,177.29,5.6383]
[1748358103026,0.04130938,177.32,177.3,5.638]
[1748358103523,0.04130938,177.32,177.31,5.6377]
[1748358103717,519.12,177.41,177.28,0.03817728]
[1748358103921,6.93269813,177.45,177.27,32.1]
[1748358103922,34.0327,177.45,177.27,48.38986361]
[1748358104122,36.027,177.45,177.4,5.6346]
[1748358104323,36.027,177.45,177.35,32.08]
[1748358104521,5.6337,177.44,177.35,32.08]
[1748358104727,0.04132504,177.41,177.38,0.04062811]
[1748358105821,0.04132504,177.41,177.38,5.67602811]
[1748358106226,0.04132504,177.41,177.38,0.04062811]
[1748358107123,5.6352,177.39,177.38,0.04062811]
[1748358107326,0.04132504,177.41,177.38,0.04062811]
[1748358107928,5.635,177.4,177.38,0.04062811]
[1748358108224,0.04132504,177.41,177.38,0.04062811]
[1748358109026,5.6352,177.39,177.38,0.04062811]
[1748358110031,0.04132504,177.41,177.38,0.04062811]
[1748358110423,5.6351,177.4,177.38,0.04062811]
[1748358110736,0.04132504,177.41,177.38,0.04062811]
[1748358111029,5.6352,177.39,177.38,0.04062811]
[1748358111421,0.04132504,177.41,177.29,31.96]
[1748358111726,1.8548,177.4,177.3,5.6378]
[1748358111929,1.8548,177.4,177.29,31.96]
[1748358112429,0.0376099,177.36,177.33,0.03687133]
[1748358112624,5.6368,177.34,177.33,0.03687133]
[1748358113932,0.0376099,177.36,177.33,0.03687133]
[1748358114426,0.0376099,177.36,177.35,5.6365]
[1748358115223,1.9327,177.45,177.34,31.96]
[1748358116326,0.0415987,177.41,177.34,31.96]
[1748358116525,0.0415987,177.41,177.36,0.03789548]
[1748358117332,0.0415987,177.41,177.4,5.6349]
[1748358123135,5.6358,177.37,177.36,0.03789548]
[1748358123337,5.9392,177.4,177.25,3.8936]
[1748358123728,5.6382,177.3,177.25,3.8936]
[1748358123935,48.24986361,177.36,177.23,31.96]
[1748358124433,0.03627078,177.31,177.23,31.96]
[1748358124630,0.03627078,177.31,177.28,0.04141775]
[1748358125030,5.6384,177.29,177.28,0.04141775]
[1748358126024,31.99627078,177.31,177.23,31.96]
[1748358126228,33.93597078,177.31,177.23,31.96]
[1748358126429,33.93597078,177.31,177.21,5.6406]
[1748358126633,1.8926,177.3,177.19,3.8487]
[1748358126933,0.03844265,177.26,177.23,0.03610772]
[1748358127140,5.64,177.24,177.23,0.03610772]
[1748358129738,5.6413,177.2,177.16,5.6424]
[1748358129942,31.98,177.26,177.15,31.98]
[1748358130529,16.28986361,177.24,177.15,31.98]
[1748358130732,0.03574231,177.21,177.18,0.03919965]
[1748358131041,5.6415,177.19,177.18,0.03919965]
[1748358131640,16.28986361,177.2,177.11,31.98]
[1748358131828,18.18536361,177.2,177.11,31.98]
[1748358132029,20.21146361,177.2,177.11,31.98]
[1748358132235,5.6425,177.17,177.11,5.6438]
[1748358132442,20.21146361,177.2,177.12,0.04165224]
[1748358132443,0.0365921,177.16,177.12,0.04165224]
[1748358133333,0.0365921,177.16,177.12,5.68525224]
[1748358133537,0.0365921,177.16,177.12,0.04165224]
[1748358134739,5.6791921,177.16,177.12,0.04165224]
[1748358134947,37.6591921,177.16,177.12,0.04165224]
[1748358135140,32.0165921,177.16,177.12,0.04165224]
[1748358135343,48.30645571,177.16,177.12,0.04165224]
[1748358135637,48.30645571,177.16,177.07,31.98]
[1748358135837,48.30645571,177.16,177.04,487.1]
[1748358135838,5.6437,177.13,177.08,5.6448]
[1748358136140,5.6437,177.13,177.04,487.1]
[1748358136343,48.26986361,177.16,177.03,31.98]
[1748358136744,0.04222464,177.11,177.08,0.04133374]
[1748358137248,0.04222464,177.11,177.08,32.02133374]
[1748358137547,2.464e-05,177.11,177.1,5.6444]
[1748358148957,16.28986361,177.26,177.1,5.64]
[1748358149255,5.6406,177.22,177.11,2.0478]
[1748358149458,31.9,177.24,177.19,5.6413]
[1748358149657,5.6409,177.22,177.14,31.9]
[1748358149857,31.9,177.24,177.14,31.9]
[1748358150059,0.04011287,177.21,177.17,0.04268433]
[1748358152869,5.6419,177.18,177.17,0.04268433]
[1748358154662,5.6429,177.15,177.12,5.6437]
[1748358154869,35.9529,177.19,177.1,31.9]
[1748358155067,5.6421,177.18,177.14,5.6429]
[1748358155366,2.0181,177.19,177.1,31.9]
[1748358155565,0.03820444,177.16,177.15,5.6428]
[1748358159472,31.9,177.25,177.15,31.9]
[1748358159777,31.9,177.25,177.15,33.755]
[1748358160071,31.9,177.25,177.16,5.6424]
[1748358160272,31.9,177.25,177.15,31.9]
[1748358160472,5.6424,177.17,177.14,2.0428]
[1748358160661,5.6424,177.17,177.14,0.03982001]
[1748358160662,0.03592556,177.17,177.14,0.03982001]
[1748358162068,5.6427,177.16,177.14,0.03982001]
[1748358162976,0.03592556,177.17,177.14,0.03982001]
[1748358163570,0.03592556,177.17,177.14,5.68272001]
[1748358163771,0.03592556,177.17,177.14,0.03982001]
[1748358164772,0.03592556,177.17,177.16,5.6425]
[1748358164972,0.03592556,177.17,177.14,0.03982001]
[1748358165176,5.6428,177.16,177.14,0.03982001]
[1748358165474,0.03592556,177.17,177.14,0.03982001]
[1748358166880,5.6428,177.15,177.14,0.03982001]
[1748358167180,37.5428,177.15,177.14,0.03982001]
[1748358168479,31.9,177.15,177.03,31.9]
[1748358169070,5.644,177.12,177.09,5.6447]